Cogmind - Beta 14 @@@ ROGUE MODE // 2024.12.22 @ 12:03:07 Player: Electroid Result: Self-destructed Performance ------------- Evolutions (1) 500 Regions Visited (2) 400 Robots Destroyed (30) 150 Value Destroyed (710) 710 Prototype IDs (3) 60 Alien Tech Used (0) 0 Bonus (29) 29 TOTAL SCORE: 1849 Bonus ------- High Alert Combat Kills 29 Cogmind --------- Core Integrity 36/400 Matter 4/300 Energy 95/100 System Corruption 0% Temperature Hot (229) Movement Flying (40) Location -9/Materials Parts ------- > --- POWER (1) -------- (None) > --- PROPULSION (3) --- Flight Unit > --- UTILITY (3) ------ Targeting Computer Targeting Computer > --- WEAPON (2) ------- (None) > --- INVENTORY (5) ---- Trap Scanner Reaction Control System Reaction Control System Improved Datajack Peak State ------------ > --- POWER ------------ Reinforced Ion Engine > --- PROPULSION ------- Hover Unit Hover Unit Flight Unit > --- UTILITY ---------- Small Storage Unit Targeting Computer Targeting Computer > --- WEAPON ----------- Light Cannon Grenade Launcher > --- INVENTORY -------- Heat Sink Trap Scanner Reaction Control System Reaction Control System Propulsion Shielding Particle Cannon Improved Datajack [Rating: 11] Favorites ----------- Power Ion Engine Engine Ion Engine Propulsion Light Treads Treads Light Treads Hover Unit Hover Unit Flight Unit Flight Unit Utility Targeting Computer Device Heat Sink Storage Small Storage Unit Processor Targeting Computer Protection Propulsion Shielding Weapon Medium Laser Energy Gun Medium Laser Energy Cannon Particle Cannon Ballistic Cannon Light Cannon Launcher Grenade Launcher Build | -11 -10 -9 ------- Run | Yrd Mat Mat Slots Evolved 2 | . . 2 Power . | . . . Propulsion 1 | . . 1 Utility 1 | . . 1 Weapon . | . . . Parts Attached 31 | 6 6 19 Power 4 | 1 . 3 Engine 4 | 1 . 3 Core . | . . . Reactor . | . . . Propulsion 11 | 2 2 7 Treads 2 | 2 . . Leg . | . . . Wheel . | . . . Hover 4 | . 2 2 Flight 5 | . . 5 Utility 7 | 1 3 3 Device 1 | . 1 . Storage 3 | 1 . 2 Processor 2 | . 1 1 Hackware . | . . . Protection 1 | . 1 . Artifact . | . . . Weapon 9 | 2 1 6 Energy Gun 2 | 2 . . Energy Cannon 3 | . . 3 Ballistic Gun . | . . . Ballistic Cannon 2 | . . 2 Launcher 2 | . 1 1 Special Weapon . | . . . Impact Weapon . | . . . Slashing Weapon . | . . . Piercing Weapon . | . . . Special Melee Weapon . | . . . Unidentified Prototypes 1 | . . 1 Parts Lost 8 | . 1 7 Power 2 | . . 2 Propulsion 3 | . . 3 Utility . | . . . Weapon 3 | . 1 2 Highest Loss Streak 6 | . 1 6 To Critical Strikes . | . . . Average Slot Usage (%) 84 | . 90 72 Engine 12 | . 14 10 Treads 17 | . 26 . Hover 7 | . 1 17 Device 7 | . 11 . Storage 5 | . 5 5 Processor 7 | . 1 19 Protection 7 | . 8 5 Energy Gun 12 | . 19 . Launcher 2 | . . 6 Peak Build Rating 11 | 6 7 11 Average Rating 6 | 4 6 7 On Entrance 4 | . 6 6 Naked Turns . | . . . Heaviest Build 21 | 14 15 21 Greatest Support 40 | 40 40 12 Greatest Overweight (x) 6 | 1 . 6 Average Overweight (x) . | . . . Largest Inventory Capacity 8 | 8 8 8 Average Capacity 6 | 7 6 6 Most Carried 8 | 5 5 8 Average Carried 2 | 1 1 5 Final Capacity 8 | 8 5 5 Final Carried 4 | . 4 4 Class Distribution -------------------- 100% | Mutant Dominant Class ---------------- Mutant | -10/Materials Mutant | -9/Materials Resources | -11 -10 -9 ----------- Run | Yrd Mat Mat Matter Collected 435 | 234 70 131 Remotely . | . . . Salvage Created 683 | . 379 304 Parts 69 | . 31 38 Haulers Intercepted . | . . . Recyclers Shooed . | . . . Parts Field Recycled . | . . . Retrieved Matter . | . . . Parts Self-Destructed . | . . . Prevented . | . . . Kills | -11 -10 -9 ------- Run | Yrd Mat Mat Combat Hostiles Destroyed 22 | . 10 12 Guns 8 | . 8 . Cannons 4 | . . 4 AOE 10 | . 2 8 Classes Destroyed 7 | . 4 3 Worker 2 | . . 2 Tunneler 1 | . 1 . Watcher 5 | . 3 2 Swarmer 8 | . 3 5 Grunt 10 | . 7 3 Brawler 1 | . . 1 Sentry 3 | . . 3 Best Kill Streak 4 | . 3 4 Combat Bots Only 3 | . 2 3 Max Kills in Single Turn 4 | . 1 4 Gunslinging . | . . . Exploded 3 | . 1 3 Melee . | . . . Uniques/NPCs Destroyed . | . . . Combat | -11 -10 -9 -------- Run | Yrd Mat Mat Hostile Shots Fired 155 | . 25 130 Missed 45 | . 9 36 Damage Taken 1306 | . 289 1017 Core 453 | . 89 364 Absorbed by Shields . | . . . Redirected to Shielding 5 | . 5 . Core Remaining (%) 82 | 100 64 . Volleys Fired 74 | . 28 46 Largest 2 | . 2 1 Hottest 100 | . 100 68 Shots Fired 93 | . 47 46 Gun 41 | . 41 . Cannon 28 | . . 28 Launcher 24 | . 6 18 Special . | . . . Kinetic . | . . . Thermal 69 | . 41 28 Explosive 24 | . 6 18 Electromagnetic . | . . . Robot Hit Streak 7 | . 7 5 Robot Miss Streak 4 | . 4 2 Penetration Max . | . . . Secondary Targets . | . . . Shots Hit Robots 43 | . 25 18 Core Hits 48 | . 21 27 Critical Kills . | . . . Critical Parts Destroyed . | . . . Critical Strikes 6 | . 6 . Burn 6 | . 6 . Melee Attacks . | . . . Impact . | . . . Slashing . | . . . Piercing . | . . . Sneak Attacks . | . . . Combat Hostiles . | . . . Follow-up Attacks . | . . . Damage Inflicted 1403 | . 467 936 Guns 323 | . 323 . Cannons 328 | . . 328 Explosions 752 | . 144 608 Melee . | . . . Ramming . | . . . Kinetic . | . . . Thermal 651 | . 323 328 Explosive 752 | . 144 608 Electromagnetic . | . . . Impact . | . . . Slashing . | . . . Piercing . | . . . Highest Corruption . | . . . Average Corruption . | . . . Corruption Purged . | . . . Corruption Blocked . | . . . Overload Shots . | . . . Overflow Damage . | . . . Projectiles . | . . . Explosions . | . . . Melee . | . . . Knockbacks . | . . . Impact . | . . . Kinetic . | . . . Secondary . | . . . Self-Inflicted Damage . | . . . Shots . | . . . Rammed . | . . . Targets Rammed . | . . . Kicked . | . . . Crushed . | . . . Highest Temperature 438 | . 75 438 Average Temperature 106 | . 22 160 Received Heat Transfer 426 | . 66 360 Effects 3 | . . 3 Interference 2 | . . 2 Matter Decay 1 | . . 1 Siege Activations . | . . . Robots Corrupted . | . . . Combat Hostiles . | . . . Parts Fried . | . . . Impact Corruptions . | . . . Robots Melted . | . . . Combat Hostiles . | . . . Parts Melted 5 | . 5 . Heat Transferred 1998 | . 1406 592 Parts Sabotaged . | . . . Parts Stolen . | . . . Parts Stripped . | . . . Power Chain Reactions . | . . . Alert | -11 -10 -9 ------- Run | Yrd Mat Mat Peak Influence 587 | . 237 587 Initial 60 | . . 60 Average 161 | . 88 324 Maximum Alert Level 2 | . 1 2 Low Security (%) 63 | 100 77 31 Level 1 22 | . 22 25 Level 2 14 | . . 43 Level 3 . | . . . Level 4 . | . . . Level 5 . | . . . High Security . | . . . Max Security . | . . . Squads Dispatched 3 | . 3 . Investigation 3 | . 3 . Extermination . | . . . Reinforcement . | . . . Assault . | . . . Garrison . | . . . Intercept . | . . . Searches Triggered . | . . . Construction Impeded . | . . . Haulers Reinforced . | . . . Active Scanning Responses . | . . . Cargo Convoy Interrupts . | . . . Stealth | -11 -10 -9 --------- Run | Yrd Mat Mat Distress Signals 2 | . . 2 Communications Jammed . | . . . Distress Signals . | . . . Times Spotted 35 | . 16 19 Peak Tracking Total 5 | . 3 5 Tactical Retreats 2 | . 1 1 Traps | -11 -10 -9 ------- Run | Yrd Mat Mat Traps Triggered 3 | . 3 . Indirectly . | . . . Trap Hack Attempts . | . . . Triggered . | . . . Disarmed . | . . . Reprogrammed . | . . . Reused . | . . . Traps Extracted . | . . . Installed . | . . . Triggered . | . . . Machines | -11 -10 -9 ---------- Run | Yrd Mat Mat Machines Disabled 3 | . . 3 Max in Single Turn 2 | . . 2 Machines Repaired . | . . . Machines Dismantled . | . . . Machines Sabotaged . | . . . Overloaded Fab Kills . | . . . Hacking | -11 -10 -9 --------- Run | Yrd Mat Mat Machines Accessed 2 | . 1 1 Terminals 2 | . 1 1 Fabricators . | . . . Repair Stations . | . . . Recycling Units . | . . . Scanalyzers . | . . . Garrison Access . | . . . Total Hacks 4 | . 2 2 Successful 2 | . 1 1 Failed 2 | . 1 1 Catastrophic . | . . . Database Lockouts . | . . . Manual . | . . . Terminals 4 | . 2 2 Fabricators . | . . . Repair Stations . | . . . Recycling Units . | . . . Scanalyzers . | . . . Garrison Access . | . . . Terminal Hacks 2 | . 1 1 Prototype ID Bank 1 | . 1 . Branch Access Points 1 | . . 1 Fabricator Hacks . | . . . Repair Station Hacks . | . . . Recycling Unit Hacks . | . . . Scanalyzer . | . . . Garrison Access Hacks . | . . . Unauthorized Hacks . | . . . Terminals . | . . . Fabricators . | . . . Repair Stations . | . . . Recycling Units . | . . . Scanalyzers . | . . . Garrison Access . | . . . Data Cores Recovered . | . . . Used . | . . . Hacking Detections 1 | . . 1 Full Trace Events . | . . . Feedback Events . | . . . Feedback Blocked . | . . . Robot Schematics Acquired . | . . . Robots Built . | . . . Authchips . | . . . Time . | . . . Total Robot Build Rating . | . . . Part Schematics Acquired . | . . . Parts Built . | . . . Authchips . | . . . Time . | . . . Total Part Build Rating . | . . . Parts Repaired . | . . . Time . | . . . Parts Recycled . | . . . Recycled Matter . | . . . Retrieved Matter . | . . . Retrieved Components . | . . . Parts Scanalyzed . | . . . Part Schematics Acquired . | . . . Parts Damaged . | . . . Bothacking | -11 -10 -9 ------------ Run | Yrd Mat Mat Used RIF Installer . | . . . Robots Hacked . | . . . Non-combat . | . . . Combat . | . . . Robot Hacks Applied . | . . . Relay Couplers Released . | . . . Fabnet Peak Effective % . | . . . Robots Rewired . | . . . Allies Hacked . | . . . Hacks Repelled . | . . . Allies | -11 -10 -9 -------- Run | Yrd Mat Mat Total Allies . | . . . Largest Group . | . . . Highest-Rated Group . | . . . Highest-Rated Ally . | . . . Total Orders . | . . . Ally Attacks . | . . . Total Damage . | . . . Kills . | . . . Allies Corrupted . | . . . Allies Melted . | . . . Intel | -11 -10 -9 ------- Run | Yrd Mat Mat Robot Analysis Total . | . . . Derelict Logs Recovered . | . . . Drone Launches . | . . . Drone Recoveries . | . . . Exploration | -11 -10 -9 ------------- Run | Yrd Mat Mat Turns Passed 1217 | 72 739 406 Spaces Moved 794 | 46 408 340 Core 23 | 15 . 8 Treads 403 | 31 372 . Legs . | . . . Wheels . | . . . Hover 348 | . 36 312 Flight 20 | . . 20 Fastest Speed 40 | 50 56 40 Average Speed 117 | 133 150 75 Slowest Speed 350 | 160 160 350 Overloaded Moves . | . . . Propulsion Burnouts . | . . . Robots Hopped . | . . . Cave-ins Triggered . | . . . Exploration Rate (%) 33 | 5 59 35 Regions Visited 2 Branch Regions . Pre-discovered Areas . | . . . Known Exits Taken . | . . . Unknown Exits Taken 2 | 1 1 . Scrap Searched . | . . . Spaces Dug . | . . . Terrain Destroyed 136 | . 34 102 Melee . | . . . Projectile 1 | . . 1 AOE 135 | . 34 101 Terrain Rammed . | . . . Walls Destroyed . | . . . Machines Disabled . | . . . Actions | -11 -10 -9 --------- Run | Yrd Mat Mat Total 984 | 57 482 445 Wait 41 | . 32 9 Move 792 | 45 407 340 Hop . | . . . Pick Up 28 | 6 7 15 Fast Attach 1 | . . 1 Attach 15 | 6 1 8 Detach 1 | . . 1 Swap 16 | . 5 11 Drop 16 | . 2 14 Fire 74 | . 28 46 Melee . | . . . Ram . | . . . Kick . | . . . Crush . | . . . Escape Stasis . | . . . Rewire . | . . . Trap . | . . . Miscellaneous . | . . . Route ------- -11/Scrapyard -10/Materials (discovered 3 exits: *Mat x2 / [*Min]) -9/Materials (discovered 3 exits: *Min x2 / Sto) History --------- Turn | Location | Event 3 | -11/Scrapyard | Discovered new exit (range 16) 73 | -11/Scrapyard | Entered Materials 312 | -10/Materials | Build established: Mutant 428 | -10/Materials | Discovered new exit (range 11) 731 | -10/Materials | Discovered new exit (range 7) 803 | -10/Materials | Discovered new exit (range 16) 812 | -10/Materials | Entered another Materials area 812 | -9/Materials | Evolved 2 slots: Propulsion x1, Utility x1 909 | -9/Materials | Discovered new exit (range 12) 965 | -9/Materials | Identified exit to Mines 965 | -9/Materials | Identified exit to Storage 1176 | -9/Materials | Core integrity fell below 50% 1204 | -9/Materials | Core integrity fell below 20% 1218 | -9/Materials | Self-destructed Last Messages --------------- U-05 Engineer destroyed. Hover Unit destroyed. K-01 Serf collects debris. Overheating: System interference. Targeting Computer temporarily disabled. Lgt. Cannon temporarily disabled. K-01 Serf collects debris. Lgt. Cannon destroyed. S-10 Pest destroyed. G-34 Mercenary destroyed. K-01 Serf collects debris. S-10 Pest heat damages Flight Unit. K-01 Serf collects debris. Particle Cannon destroyed. Rnf. Ion Engine destroyed. K-01 Serf collects debris. Flight Unit destroyed. Overheating: Matter decay (-1). Dropped Sml. Storage Unit. K-01 Serf collects debris. Map ----- +----------------------------------------------------+ | ?????????????????????????????????????????????????? | | ?????????????????????????????????????????????????? | | ????????????????????????????????????????###?#????? | | ???????????????????????????????????????? # # ????? | | ???????????????????????????????????????? ????? | | ???????????????????????????????????????? ! ????? | | ????????????????????????????????????????? ==?????? | | ????????????????????????????????????????? = ?????? | | ????????????????????????????????????????? % ?????? | | ????????????????????????????????????????? ?????? | | ????????????????????????????????????????? ?????? | | ????????????????????????????????????????? ?????? | | ?????????????????????????????????????????# #?????? | | ?????????????????????????????????????????# #?????? | | ?????????????????????????##+###??????????# #?????? | | ?????????????????????????# #?????######/#?????? | | ????????????#####+######## #?????# #?????? | | ????????????# ! + #?????# ] #?????? | | ????????????# """ ""##! #?????# #?? ?? | | ????????????# """"" T"## #?????# #? #?? | | ?????????????? """"" ""## #?????# #? #?? | | ????????????# """"" ##gk #?????# # #?? | | ????????????# """ # k##########+### #?? | | ????????????# # k %* =%[%%[ #?? | | ????????????#########+### %* [ =*= #?? | | ???????????????????# @= """ #?? | | ???????????????????# """ #?? | | ???????????????????# """ #?? | | ???????????????????# ||= "" #?? | | ???????????????????# % ||= = T" ### | | ?????????????????? ^^^! |== = "" | | ???>??????????>?? | = * =! | | ???????????????? w =! | | ?????????????? #######+## # ########## | | ?????????????!"!" ?????????####### # ####????????? | | ??????????????"!"????????????????### #???????????? | | ??????????????###??????????????????# #???????????? | | ???????????????????????????????????# #???????????? | | ???????????????????????????????????# #???????????? | | ????????????????#########??????????# #???????????? | | #??????????????# #?????????# #???????????? | | ###########????# #?????##### ###?""??????? | | #????# #?????#// #? ?????? | | #????# """ """ #?????#/ # """ #???? | | #????# """ """ #?????#! + """ #???? | | ####### #????# """ """ #?????#! # """?????? | | ###???# #????# #?????#! # #???? | | #???# #????# #?????#!! #?######## | | #???# ##########+############# ### / | | #???# ## / | +----------------------------------------------------+ Best States ------------- Heat Dissipation 35 Energy Generation 12 Energy Capacity 265 Matter Stores 300 Matter Capacity 300 Sight Range 16 Terrain Scan Density 10 Propulsion Shielding 33 Evasion (%) 53 Targeting Accuracy 10 Recoil Reduction 2 Item Schematics ----------------- None Robot Schematics ------------------ None Fabricated ------------ Nothing Alien Tech Used ----------------- None Achievements -------------- Oops Challenges ------------ None Game ------ Seed DefenseDiametricBeacon Manual? 0 Play Time 00:21:05 Cumulative 3.6 hours Start 2024.12.22 @ 11:43:57 End 2024.12.22 @ 12:03:07 Sessions 1 Manual Loads 0 Difficulty Rogue Special Mode None Game No. 5 Rogue 5 Adventurer 0 Explorer 0 Win Type - Total 0 Types 0/0/0/0/0/0/0/0/0 Lore% 2 Gallery% 7 Achievement% 7 Wizard Run 0 Options --------- Layout 1 ASCII 0 Keyboard 0 Movement Mouse Keybinds 0 Fullscreen 2 Font 32/SmallcapsGlow Map View 50x35 Zoom Use 0% Tactical HUD 0 Map Filters NONE Filters NONE Steam 0 RUN: a1a8b012-2beb-410f-a1f1-dc8cc22e8543